[Event "Titled Tuesday Blitz May 30 Early 2023"]
[White "Lymar, Vladislav"]
[Black "Garayev, Kanan"]
[WhiteFideId "14162180"]
[BlackFideId "13406671"]
[WhiteElo "2234"]
[BlackElo "2230"]
[Result "1-0"]
[Round "04"]
[TimeControl "180+2"]
[Date "2023.05.30"]
[WhiteClock "0:00:11"]
[BlackClock "0:00:39"]

1. b3 {[%clk 0:03:00]}  e5 {[%clk 0:02:57]} 2. Bb2 {[%clk 0:03:01]}  Nc6 {[%clk 0:02:57]} 3. g3 {[%clk 0:02:50]}  Nf6 {[%clk 0:02:55]} 4. Bg2 {[%clk 0:02:51]}  Bc5 {[%clk 0:02:54]} 5. e3 {[%clk 0:02:49]}  h5 {[%clk 0:02:54]} 6. h3 {[%clk 0:02:48]}  d6 {[%clk 0:02:54]} 7. d3 {[%clk 0:02:47]}  a6 {[%clk 0:02:55]} 8. Ne2 {[%clk 0:02:46]}  Ba7 {[%clk 0:02:55]} 9. c4 {[%clk 0:02:43]}  Bf5 {[%clk 0:02:55]} 10. Nbc3 {[%clk 0:02:36]}  Qd7 {[%clk 0:02:54]} 11. Nd5 {[%clk 0:02:32]}  Nxd5 {[%clk 0:02:47]} 12. cxd5 {[%clk 0:02:24]}  Ne7 {[%clk 0:02:47]} 13. Rc1 {[%clk 0:02:20]}  Rc8 {[%clk 0:02:39]} 14. Nc3 {[%clk 0:01:57]}  c6 {[%clk 0:02:09]} 15. dxc6 {[%clk 0:01:55]}  bxc6 {[%clk 0:02:08]} 16. Ne4 {[%clk 0:01:52]}  f6 {[%clk 0:02:03]} 17. O-O {[%clk 0:01:51]}  d5 {[%clk 0:02:01]} 18. Nc5 {[%clk 0:01:47]}  Bxc5 {[%clk 0:02:02]} 19. Rxc5 {[%clk 0:01:48]}  Bxh3 {[%clk 0:02:02]} 20. e4 {[%clk 0:01:37]}  h4 {[%clk 0:02:00]} 21. Qf3 {[%clk 0:01:18]}  Bg4 {[%clk 0:01:42]} 22. Qe3 {[%clk 0:01:18]}  d4 {[%clk 0:01:41]} 23. Qd2 {[%clk 0:01:18]}  Ng6 {[%clk 0:01:40]} 24. f3 {[%clk 0:01:07]}  Bh3 {[%clk 0:01:37]} 25. g4 {[%clk 0:01:04]}  Bxg2 {[%clk 0:01:20]} 26. Qxg2 {[%clk 0:01:05]}  Nf4 {[%clk 0:01:21]} 27. Qc2 {[%clk 0:01:05]}  h3 {[%clk 0:01:17]} 28. Kh2 {[%clk 0:01:02]}  Ne6 {[%clk 0:01:11]} 29. Rc4 {[%clk 0:00:52]}  Ng5 {[%clk 0:01:09]} 30. Bc1 {[%clk 0:00:51]}  Ne6 {[%clk 0:01:05]} 31. Ra4 {[%clk 0:00:41]}  Qb7 {[%clk 0:01:02]} 32. Qc4 {[%clk 0:00:38]}  Kf7 {[%clk 0:01:01]} 33. Qxa6 {[%clk 0:00:37]}  Qxa6 {[%clk 0:00:59]} 34. Rxa6 {[%clk 0:00:38]}  Ra8 {[%clk 0:00:59]} 35. Rxa8 {[%clk 0:00:33]}  Rxa8 {[%clk 0:01:00]} 36. a3 {[%clk 0:00:29]}  Rb8 {[%clk 0:01:00]} 37. b4 {[%clk 0:00:28]}  c5 {[%clk 0:01:01]} 38. Bd2 {[%clk 0:00:27]}  Ra8 {[%clk 0:01:00]} 39. Ra1 {[%clk 0:00:24]}  cxb4 {[%clk 0:00:57]} 40. Bxb4 {[%clk 0:00:25]}  Nf4 {[%clk 0:00:58]} 41. Rd1 {[%clk 0:00:23]}  Rc8 {[%clk 0:00:59]} 42. a4 {[%clk 0:00:18]}  Rc2+ {[%clk 0:00:57]} 43. Kh1 {[%clk 0:00:16]}  Ne2 {[%clk 0:00:55]} 44. Be1 {[%clk 0:00:14]}  Ra2 {[%clk 0:00:51]} 45. Rd2 {[%clk 0:00:12]}  Nc1 {[%clk 0:00:37]} 46. Rxa2 {[%clk 0:00:11]}  Nxa2 {[%clk 0:00:38]} 47. a5 {[%clk 0:00:12]}  Nc3 {[%clk 0:00:38]} 48. a6 {[%clk 0:00:10]}  Nb5 {[%clk 0:00:38]} 49. Ba5 {[%clk 0:00:10]}  Ke6 {[%clk 0:00:39]} 50. Bb6 {[%clk 0:00:10]}  Kd6 {[%clk 0:00:39]} 51. a7 {[%clk 0:00:11]}  Kc6 {[%clk 0:00:39]} 52. a8=Q+ {[%clk 0:00:11]} 1-0


[Site "https://www.chess.com"]

[Event "Titled Tuesday Blitz May 30 Early 2023"]
[White "Ioannidis, Evgenios"]
[Black "Aggelis, Nikolaos"]
[WhiteFideId "4229274"]
[BlackFideId "4213220"]
[WhiteElo "2386"]
[BlackElo "2189"]
[Result "1-0"]
[Round "04"]
[TimeControl "180+2"]
[Date "2023.05.30"]
[WhiteClock "0:01:55"]
[BlackClock "0:00:14"]

1. d4 {[%clk 0:03:00]}  f5 {[%clk 0:02:47]} 2. Nc3 {[%clk 0:02:59]}  Nf6 {[%clk 0:02:44]} 3. Bg5 {[%clk 0:02:59]}  d5 {[%clk 0:02:44]} 4. e3 {[%clk 0:02:59]}  Nbd7 {[%clk 0:02:31]} 5. Bd3 {[%clk 0:02:57]}  e6 {[%clk 0:02:31]} 6. Nf3 {[%clk 0:02:56]}  Be7 {[%clk 0:02:31]} 7. O-O {[%clk 0:02:55]}  O-O {[%clk 0:02:32]} 8. Ne2 {[%clk 0:02:56]}  Ne4 {[%clk 0:02:21]} 9. Bxe7 {[%clk 0:02:53]}  Qxe7 {[%clk 0:02:22]} 10. c4 {[%clk 0:02:53]}  c6 {[%clk 0:02:20]} 11. Rc1 {[%clk 0:02:37]}  Qb4 {[%clk 0:02:02]} 12. Qc2 {[%clk 0:02:33]}  b5 {[%clk 0:01:27]} 13. cxd5 {[%clk 0:02:30]}  cxd5 {[%clk 0:01:26]} 14. Qc6 {[%clk 0:02:27]}  Nb6 {[%clk 0:01:21]} 15. Qxb5 {[%clk 0:02:26]}  Qe7 {[%clk 0:01:15]} 16. Ne5 {[%clk 0:02:22]}  Bd7 {[%clk 0:01:14]} 17. Nxd7 {[%clk 0:02:22]}  Qxd7 {[%clk 0:01:14]} 18. Qxd7 {[%clk 0:02:21]}  Nxd7 {[%clk 0:01:15]} 19. Nf4 {[%clk 0:02:20]}  Rf6 {[%clk 0:00:54]} 20. Rc6 {[%clk 0:02:17]}  Nf8 {[%clk 0:00:54]} 21. Rfc1 {[%clk 0:02:11]}  g5 {[%clk 0:00:53]} 22. Nxd5 {[%clk 0:02:02]}  exd5 {[%clk 0:00:33]} 23. Bxe4 {[%clk 0:02:02]}  Rxc6 {[%clk 0:00:18]} 24. Bxd5+ {[%clk 0:02:02]}  Kg7 {[%clk 0:00:19]} 25. Rxc6 {[%clk 0:02:01]}  Rd8 {[%clk 0:00:18]} 26. Rc7+ {[%clk 0:02:01]}  Kf6 {[%clk 0:00:18]} 27. Bc4 {[%clk 0:02:00]}  f4 {[%clk 0:00:16]} 28. Rxa7 {[%clk 0:01:56]}  fxe3 {[%clk 0:00:14]} 29. fxe3 {[%clk 0:01:56]}  Rc8 {[%clk 0:00:15]} 30. b3 {[%clk 0:01:56]}  Ng6 {[%clk 0:00:14]} 31. Rf7# {[%clk 0:01:55]} 1-0


[Site "https://www.chess.com"]

[Event "Titled Tuesday Blitz May 30 Early 2023"]
[White "Bagwe Gaurang"]
[Black "Matinian, Nikita"]
[WhiteFideId "45039895"]
[BlackFideId "24129100"]
[WhiteElo "1847"]
[BlackElo "2422"]
[Result "0-1"]
[Round "04"]
[TimeControl "180+2"]
[Date "2023.05.30"]
[WhiteClock "0:00:11"]
[BlackClock "0:01:01"]

1. e4 {[%clk 0:03:00]}  d6 {[%clk 0:02:59]} 2. b3 {[%clk 0:02:59]}  g6 {[%clk 0:03:00]} 3. Bb2 {[%clk 0:02:59]}  Nf6 {[%clk 0:03:01]} 4. Nf3 {[%clk 0:02:57]}  Bg7 {[%clk 0:03:01]} 5. d3 {[%clk 0:02:48]}  O-O {[%clk 0:02:58]} 6. Nbd2 {[%clk 0:02:48]}  c5 {[%clk 0:02:54]} 7. Be2 {[%clk 0:02:43]}  Nc6 {[%clk 0:02:54]} 8. O-O {[%clk 0:02:43]}  e5 {[%clk 0:02:54]} 9. h3 {[%clk 0:02:27]}  Nh5 {[%clk 0:02:53]} 10. Nc4 {[%clk 0:02:23]}  Nf4 {[%clk 0:02:52]} 11. Qd2 {[%clk 0:01:51]}  f5 {[%clk 0:02:50]} 12. Rae1 {[%clk 0:01:50]}  Nd4 {[%clk 0:02:28]} 13. Bd1 {[%clk 0:01:44]}  fxe4 {[%clk 0:02:23]} 14. dxe4 {[%clk 0:01:41]}  b6 {[%clk 0:01:25]} 15. Nxd4 {[%clk 0:01:40]}  cxd4 {[%clk 0:01:25]} 16. c3 {[%clk 0:01:41]}  Qg5 {[%clk 0:01:20]} 17. g3 {[%clk 0:01:23]}  Bxh3 {[%clk 0:01:20]} 18. cxd4 {[%clk 0:01:20]}  Bxf1 {[%clk 0:01:20]} 19. Rxf1 {[%clk 0:01:21]}  exd4 {[%clk 0:01:18]} 20. Bxd4 {[%clk 0:00:35]}  Nh3+ {[%clk 0:01:04]} 21. Kh2 {[%clk 0:00:35]}  Qxd2 {[%clk 0:01:04]} 22. Nxd2 {[%clk 0:00:35]}  Bxd4 {[%clk 0:01:04]} 23. Kxh3 {[%clk 0:00:33]}  Rxf2 {[%clk 0:01:04]} 24. Rxf2 {[%clk 0:00:33]}  Bxf2 {[%clk 0:01:05]} 25. Nc4 {[%clk 0:00:34]}  Bc5 {[%clk 0:01:05]} 26. a3 {[%clk 0:00:32]}  b5 {[%clk 0:01:05]} 27. Na5 {[%clk 0:00:22]}  Bxa3 {[%clk 0:01:04]} 28. Be2 {[%clk 0:00:19]}  a6 {[%clk 0:01:04]} 29. Kg4 {[%clk 0:00:17]}  Kg7 {[%clk 0:01:04]} 30. Kf4 {[%clk 0:00:16]}  Bc5 {[%clk 0:01:03]} 31. Nc6 {[%clk 0:00:16]}  Rf8+ {[%clk 0:01:03]} 32. Kg4 {[%clk 0:00:16]}  h5+ {[%clk 0:01:03]} 33. Kg5 {[%clk 0:00:16]}  Be3+ {[%clk 0:01:01]} 34. Kh4 {[%clk 0:00:11]}  Rf2 {[%clk 0:01:01]} 0-1


[Site "https://www.chess.com"]

[Event "Titled Tuesday Blitz May 30 Early 2023"]
[White "Ladan, Nicholas"]
[Black "Danielyan, Vahe"]
[WhiteFideId "30918855"]
[BlackFideId "13304828"]
[WhiteElo "2167"]
[BlackElo "2423"]
[Result "0-1"]
[Round "04"]
[TimeControl "180+2"]
[Date "2023.05.30"]
[WhiteClock "0:00:00"]
[BlackClock "0:00:26"]

1. Nf3 {[%clk 0:03:00]}  Nf6 {[%clk 0:02:58]} 2. e3 {[%clk 0:03:01]}  b6 {[%clk 0:02:53]} 3. c4 {[%clk 0:03:01]}  Bb7 {[%clk 0:02:54]} 4. Nc3 {[%clk 0:03:00]}  e6 {[%clk 0:02:54]} 5. b3 {[%clk 0:02:59]}  Be7 {[%clk 0:02:54]} 6. Bb2 {[%clk 0:03:00]}  O-O {[%clk 0:02:54]} 7. Be2 {[%clk 0:03:01]}  d5 {[%clk 0:02:54]} 8. O-O {[%clk 0:03:00]}  Nbd7 {[%clk 0:02:54]} 9. Rc1 {[%clk 0:02:53]}  c5 {[%clk 0:02:54]} 10. d4 {[%clk 0:02:53]}  Rc8 {[%clk 0:02:54]} 11. cxd5 {[%clk 0:02:49]}  Nxd5 {[%clk 0:02:54]} 12. dxc5 {[%clk 0:02:47]}  Nxc5 {[%clk 0:02:53]} 13. Nb5 {[%clk 0:02:37]}  a6 {[%clk 0:02:46]} 14. Nbd4 {[%clk 0:02:35]}  Ne4 {[%clk 0:02:44]} 15. Ne5 {[%clk 0:02:30]}  Nec3 {[%clk 0:02:32]} 16. Bxc3 {[%clk 0:02:09]}  Nxc3 {[%clk 0:02:33]} 17. Qd2 {[%clk 0:02:06]}  Nxe2+ {[%clk 0:02:19]} 18. Qxe2 {[%clk 0:02:04]}  Qd5 {[%clk 0:02:19]} 19. Nef3 {[%clk 0:01:58]}  h6 {[%clk 0:02:00]} 20. h3 {[%clk 0:01:47]}  Rfd8 {[%clk 0:01:55]} 21. Qb2 {[%clk 0:01:40]}  Bf6 {[%clk 0:01:51]} 22. Rxc8 {[%clk 0:01:35]}  Rxc8 {[%clk 0:01:50]} 23. Rc1 {[%clk 0:01:36]}  Rd8 {[%clk 0:01:38]} 24. Rc7 {[%clk 0:01:20]}  e5 {[%clk 0:01:10]} 25. Ne2 {[%clk 0:00:49]}  Qd1+ {[%clk 0:01:09]} 26. Kh2 {[%clk 0:00:48]}  Bxf3 {[%clk 0:01:10]} 27. gxf3 {[%clk 0:00:41]}  Rd2 {[%clk 0:01:08]} 28. Nc3 {[%clk 0:00:30]}  Qe1 {[%clk 0:01:05]} 29. Rc8+ {[%clk 0:00:24]}  Kh7 {[%clk 0:01:03]} 30. Qb1+ {[%clk 0:00:25]}  Qxb1 {[%clk 0:01:00]} 31. Nxb1 {[%clk 0:00:26]}  Rxf2+ {[%clk 0:01:00]} 32. Kg3 {[%clk 0:00:26]}  Rxa2 {[%clk 0:01:00]} 33. Rc6 {[%clk 0:00:18]}  Rb2 {[%clk 0:00:59]} 34. Nc3 {[%clk 0:00:18]}  Rxb3 {[%clk 0:00:53]} 35. Nd5 {[%clk 0:00:18]}  a5 {[%clk 0:00:44]} 36. Nxb6 {[%clk 0:00:18]}  Rxe3 {[%clk 0:00:43]} 37. Nd5 {[%clk 0:00:17]}  Ra3 {[%clk 0:00:38]} 38. Nxf6+ {[%clk 0:00:10]}  gxf6 {[%clk 0:00:39]} 39. Rxf6 {[%clk 0:00:10]}  Kg7 {[%clk 0:00:40]} 40. Ra6 {[%clk 0:00:10]}  e4 {[%clk 0:00:40]} 41. Kg4 {[%clk 0:00:09]}  Rxf3 {[%clk 0:00:30]} 42. Rxa5 {[%clk 0:00:08]}  f5+ {[%clk 0:00:30]} 43. Kh4 {[%clk 0:00:05]}  e3 {[%clk 0:00:31]} 44. Re5 {[%clk 0:00:05]}  f4 {[%clk 0:00:31]} 45. Kg4 {[%clk 0:00:04]}  Rf2 {[%clk 0:00:31]} 46. h4 {[%clk 0:00:03]}  e2 {[%clk 0:00:31]} 47. h5 {[%clk 0:00:03]}  f3 {[%clk 0:00:31]} 48. Kf5 {[%clk 0:00:03]}  Rf1 {[%clk 0:00:31]} 49. Re7+ {[%clk 0:00:03]}  Kf8 {[%clk 0:00:31]} 50. Kf6 {[%clk 0:00:02]}  e1=Q {[%clk 0:00:31]} 51. Rc7 {[%clk 0:00:00]}  Qa1+ {[%clk 0:00:26]} 0-1


[Site "https://www.chess.com"]

[Event "Titled Tuesday Blitz May 30 Early 2023"]
[White "Kucuksari, Kaan"]
[Black "Mika, Tomasz"]
[WhiteFideId "6380166"]
[BlackFideId "1132970"]
[WhiteElo "2364"]
[BlackElo "2179"]
[Result "1-0"]
[Round "04"]
[TimeControl "180+2"]
[Date "2023.05.30"]
[WhiteClock "0:01:58"]
[BlackClock "0:01:48"]

1. e4 {[%clk 0:03:00]}  c6 {[%clk 0:02:58]} 2. d4 {[%clk 0:03:00]}  d5 {[%clk 0:02:59]} 3. Nc3 {[%clk 0:02:57]}  dxe4 {[%clk 0:02:58]} 4. Nxe4 {[%clk 0:02:58]}  Bf5 {[%clk 0:02:58]} 5. Ng3 {[%clk 0:02:58]}  Bg6 {[%clk 0:02:59]} 6. h4 {[%clk 0:02:59]}  h6 {[%clk 0:02:58]} 7. h5 {[%clk 0:03:00]}  Bh7 {[%clk 0:02:58]} 8. Nf3 {[%clk 0:03:00]}  Nd7 {[%clk 0:02:58]} 9. Bd3 {[%clk 0:03:01]}  Bxd3 {[%clk 0:02:58]} 10. Qxd3 {[%clk 0:03:02]}  Ngf6 {[%clk 0:02:59]} 11. Bf4 {[%clk 0:03:02]}  Qa5+ {[%clk 0:02:57]} 12. Bd2 {[%clk 0:03:01]}  Qc7 {[%clk 0:02:57]} 13. O-O-O {[%clk 0:03:01]}  e6 {[%clk 0:02:57]} 14. Kb1 {[%clk 0:03:02]}  Be7 {[%clk 0:02:57]} 15. Ne4 {[%clk 0:02:57]}  Nxe4 {[%clk 0:02:53]} 16. Qxe4 {[%clk 0:02:58]}  Nf6 {[%clk 0:02:53]} 17. Qe2 {[%clk 0:02:57]}  O-O {[%clk 0:02:53]} 18. g4 {[%clk 0:02:56]}  Nxg4 {[%clk 0:02:53]} 19. Rdg1 {[%clk 0:02:55]}  f5 {[%clk 0:02:38]} 20. Qxe6+ {[%clk 0:02:53]}  Kh7 {[%clk 0:02:38]} 21. Qg6+ {[%clk 0:02:52]}  Kh8 {[%clk 0:02:38]} 22. Bxh6 {[%clk 0:02:47]}  gxh6 {[%clk 0:02:31]} 23. Rxg4 {[%clk 0:02:47]}  fxg4 {[%clk 0:02:28]} 24. Qxh6+ {[%clk 0:02:47]}  Kg8 {[%clk 0:02:29]} 25. Qg6+ {[%clk 0:02:42]}  Kh8 {[%clk 0:02:29]} 26. Ne5 {[%clk 0:02:26]}  Rf6 {[%clk 0:02:27]} 27. Qxg4 {[%clk 0:02:16]}  Rg8 {[%clk 0:02:13]} 28. Ng6+ {[%clk 0:02:14]}  Rfxg6 {[%clk 0:01:51]} 29. hxg6+ {[%clk 0:02:13]}  Kg7 {[%clk 0:01:51]} 30. Rh7+ {[%clk 0:01:56]}  Kf8 {[%clk 0:01:51]} 31. Qf5+ {[%clk 0:01:57]}  Ke8 {[%clk 0:01:48]} 32. Qf7+ {[%clk 0:01:58]} 1-0


[Site "https://www.chess.com"]

[Event "Titled Tuesday Blitz May 30 Early 2023"]
[White "Martinez Ramirez, Lennis"]
[Black "Fan_Of_Chucky"]
[WhiteFideId "3509079"]
[WhiteElo "2410"]
[BlackElo "2455"]
[Result "1-0"]
[Round "04"]
[TimeControl "180+2"]
[Date "2023.05.30"]
[WhiteClock "0:00:56"]
[BlackClock "0:01:57"]

1. c4 {[%clk 0:03:00]}  Nf6 {[%clk 0:02:59]} 2. Nc3 {[%clk 0:02:51]}  d5 {[%clk 0:02:59]} 3. cxd5 {[%clk 0:02:50]}  Nxd5 {[%clk 0:03:00]} 4. e4 {[%clk 0:02:48]}  Nxc3 {[%clk 0:03:00]} 5. dxc3 {[%clk 0:02:40]}  Qxd1+ {[%clk 0:03:01]} 6. Kxd1 {[%clk 0:02:40]}  g6 {[%clk 0:03:01]} 7. Bf4 {[%clk 0:02:38]}  c6 {[%clk 0:03:02]} 8. a4 {[%clk 0:02:34]}  Bg7 {[%clk 0:03:02]} 9. a5 {[%clk 0:02:32]}  O-O {[%clk 0:02:58]} 10. Bc4 {[%clk 0:02:30]}  Nd7 {[%clk 0:02:55]} 11. Kc2 {[%clk 0:02:27]}  Nc5 {[%clk 0:02:52]} 12. f3 {[%clk 0:02:14]}  Be6 {[%clk 0:02:52]} 13. Bxe6 {[%clk 0:02:05]}  Nxe6 {[%clk 0:02:53]} 14. Be3 {[%clk 0:02:05]}  c5 {[%clk 0:02:49]} 15. Ne2 {[%clk 0:02:04]}  Rfd8 {[%clk 0:02:48]} 16. Rhd1 {[%clk 0:01:49]}  Rac8 {[%clk 0:02:46]} 17. Rxd8+ {[%clk 0:01:47]}  Rxd8 {[%clk 0:02:47]} 18. h4 {[%clk 0:01:34]}  Kf8 {[%clk 0:02:45]} 19. Nc1 {[%clk 0:01:31]}  Bf6 {[%clk 0:02:31]} 20. g3 {[%clk 0:01:29]}  Kg7 {[%clk 0:02:06]} 21. Nd3 {[%clk 0:01:27]}  Rc8 {[%clk 0:02:04]} 22. Rd1 {[%clk 0:01:09]}  Nd4+ {[%clk 0:02:00]} 23. Bxd4 {[%clk 0:00:56]}  cxd4 {[%clk 0:01:57]} 24. e5 {[%clk 0:00:56]} 1-0


[Site "https://www.chess.com"]

[Event "Titled Tuesday Blitz May 30 Early 2023"]
[White "Goryachkina, Aleksandra"]
[Black "Grave, Jacob Templen"]
[WhiteFideId "4147103"]
[BlackFideId "1542656"]
[WhiteElo "2471"]
[BlackElo "2189"]
[Result "1/2-1/2"]
[Round "04"]
[TimeControl "180+2"]
[Date "2023.05.30"]
[WhiteClock "0:00:11"]
[BlackClock "0:00:15"]

1. e4 {[%clk 0:02:59]}  c6 {[%clk 0:02:58]} 2. d4 {[%clk 0:02:58]}  d5 {[%clk 0:02:58]} 3. e5 {[%clk 0:02:59]}  Bf5 {[%clk 0:02:58]} 4. Nf3 {[%clk 0:02:57]}  e6 {[%clk 0:02:57]} 5. Be2 {[%clk 0:02:58]}  c5 {[%clk 0:02:55]} 6. c3 {[%clk 0:02:55]}  Nc6 {[%clk 0:02:54]} 7. O-O {[%clk 0:02:55]}  cxd4 {[%clk 0:02:52]} 8. cxd4 {[%clk 0:02:45]}  Nge7 {[%clk 0:02:52]} 9. a3 {[%clk 0:02:42]}  a5 {[%clk 0:02:41]} 10. Nc3 {[%clk 0:02:40]}  Bg4 {[%clk 0:02:37]} 11. Ne1 {[%clk 0:02:23]}  Bxe2 {[%clk 0:02:32]} 12. Nxe2 {[%clk 0:02:23]}  h5 {[%clk 0:02:14]} 13. Bg5 {[%clk 0:02:11]}  Qb6 {[%clk 0:02:09]} 14. Bxe7 {[%clk 0:02:10]}  Bxe7 {[%clk 0:02:07]} 15. Qd2 {[%clk 0:02:10]}  a4 {[%clk 0:02:02]} 16. f4 {[%clk 0:01:53]}  g6 {[%clk 0:01:58]} 17. Nf3 {[%clk 0:01:49]}  Kf8 {[%clk 0:01:40]} 18. Kh1 {[%clk 0:01:49]}  Kg7 {[%clk 0:01:40]} 19. Nc3 {[%clk 0:01:37]}  Qb3 {[%clk 0:01:27]} 20. Qf2 {[%clk 0:00:56]}  Rhc8 {[%clk 0:00:54]} 21. f5 {[%clk 0:00:23]}  exf5 {[%clk 0:00:46]} 22. Nd2 {[%clk 0:00:22]}  Qxb2 {[%clk 0:00:32]} 23. Nxd5 {[%clk 0:00:23]}  Rd8 {[%clk 0:00:22]} 24. Rfb1 {[%clk 0:00:14]}  Qc2 {[%clk 0:00:15]} 25. Rc1 {[%clk 0:00:12]}  Qb2 {[%clk 0:00:15]} 26. Rcb1 {[%clk 0:00:11]}  Qc2 {[%clk 0:00:15]} 27. Rc1 {[%clk 0:00:11]}  Qb2 {[%clk 0:00:15]} 28. Rcb1 {[%clk 0:00:11]} 1/2-1/2


[Site "https://www.chess.com"]

[Event "Titled Tuesday Blitz May 30 Early 2023"]
[White "Gil Alba, Hector Luis"]
[Black "Shuvalova, Polina"]
[WhiteFideId "3504670"]
[BlackFideId "24171760"]
[WhiteElo "2331"]
[BlackElo "2281"]
[Result "1-0"]
[Round "04"]
[TimeControl "180+2"]
[Date "2023.05.30"]
[WhiteClock "0:02:21"]
[BlackClock "0:01:10"]

1. e4 {[%clk 0:03:00]}  c5 {[%clk 0:02:57]} 2. Nf3 {[%clk 0:02:59]}  Nc6 {[%clk 0:02:56]} 3. Bb5 {[%clk 0:02:59]}  d6 {[%clk 0:02:56]} 4. O-O {[%clk 0:02:59]}  Bd7 {[%clk 0:02:56]} 5. c3 {[%clk 0:02:59]}  Nf6 {[%clk 0:02:56]} 6. Re1 {[%clk 0:02:58]}  a6 {[%clk 0:02:55]} 7. Bxc6 {[%clk 0:02:58]}  Bxc6 {[%clk 0:02:55]} 8. d4 {[%clk 0:02:58]}  cxd4 {[%clk 0:02:48]} 9. cxd4 {[%clk 0:02:58]}  Bxe4 {[%clk 0:02:48]} 10. Bg5 {[%clk 0:02:56]}  Bc6 {[%clk 0:02:34]} 11. Bxf6 {[%clk 0:02:53]}  gxf6 {[%clk 0:02:34]} 12. d5 {[%clk 0:02:53]}  Bd7 {[%clk 0:02:31]} 13. Nc3 {[%clk 0:02:53]}  Bg7 {[%clk 0:02:18]} 14. Nd4 {[%clk 0:02:50]}  f5 {[%clk 0:02:17]} 15. Ne6 {[%clk 0:02:43]}  Bxe6 {[%clk 0:02:08]} 16. dxe6 {[%clk 0:02:41]}  fxe6 {[%clk 0:02:01]} 17. Rxe6 {[%clk 0:02:39]}  O-O {[%clk 0:01:58]} 18. Nd5 {[%clk 0:02:37]}  Rf7 {[%clk 0:01:57]} 19. Qe2 {[%clk 0:02:35]}  Qa5 {[%clk 0:01:38]} 20. Nxe7+ {[%clk 0:02:31]}  Kh8 {[%clk 0:01:39]} 21. Qh5 {[%clk 0:02:25]}  Qc5 {[%clk 0:01:10]} 22. Qxf7 {[%clk 0:02:21]} 1-0


[Site "https://www.chess.com"]

[Event "Titled Tuesday Blitz May 30 Early 2023"]
[White "Perez Rodriguez, Jennifer"]
[Black "Williams, Simon K"]
[WhiteFideId "3507831"]
[BlackFideId "404454"]
[WhiteElo "2116"]
[BlackElo "2468"]
[Result "0-1"]
[Round "04"]
[TimeControl "180+2"]
[Date "2023.05.30"]
[WhiteClock "0:00:00"]
[BlackClock "0:00:08"]

1. e4 {[%clk 0:03:00]}  g6 {[%clk 0:02:46]} 2. d4 {[%clk 0:02:58]}  Bg7 {[%clk 0:02:44]} 3. Nc3 {[%clk 0:02:58]}  d6 {[%clk 0:02:44]} 4. Nf3 {[%clk 0:02:58]}  a6 {[%clk 0:02:43]} 5. a4 {[%clk 0:02:57]}  b6 {[%clk 0:02:44]} 6. Bd3 {[%clk 0:02:56]}  Bb7 {[%clk 0:02:42]} 7. O-O {[%clk 0:02:56]}  e6 {[%clk 0:02:42]} 8. Re1 {[%clk 0:02:57]}  Nd7 {[%clk 0:02:40]} 9. Bf4 {[%clk 0:02:43]}  h6 {[%clk 0:02:36]} 10. h3 {[%clk 0:02:39]}  Ne7 {[%clk 0:02:35]} 11. Qd2 {[%clk 0:02:38]}  g5 {[%clk 0:02:35]} 12. Bg3 {[%clk 0:02:36]}  Ng6 {[%clk 0:02:35]} 13. Rad1 {[%clk 0:02:25]}  O-O {[%clk 0:02:31]} 14. d5 {[%clk 0:02:08]}  e5 {[%clk 0:02:12]} 15. Nh2 {[%clk 0:01:59]}  Nf6 {[%clk 0:02:10]} 16. Ng4 {[%clk 0:01:54]}  Bc8 {[%clk 0:01:48]} 17. Nxf6+ {[%clk 0:01:24]}  Qxf6 {[%clk 0:01:45]} 18. f3 {[%clk 0:01:20]}  h5 {[%clk 0:01:44]} 19. Bf2 {[%clk 0:01:13]}  Nf4 {[%clk 0:01:38]} 20. Bf1 {[%clk 0:01:11]}  g4 {[%clk 0:01:38]} 21. hxg4 {[%clk 0:01:09]}  hxg4 {[%clk 0:01:38]} 22. Ne2 {[%clk 0:01:00]}  gxf3 {[%clk 0:01:20]} 23. Nxf4 {[%clk 0:01:00]}  exf4 {[%clk 0:01:20]} 24. gxf3 {[%clk 0:00:55]}  Qg5+ {[%clk 0:01:17]} 25. Kh1 {[%clk 0:00:40]}  Kh7 {[%clk 0:01:07]} 26. Bg1 {[%clk 0:00:20]}  Rh8 {[%clk 0:01:03]} 27. Bh2 {[%clk 0:00:20]}  Kg8 {[%clk 0:00:57]} 28. Bc4 {[%clk 0:00:21]}  Kf8 {[%clk 0:00:41]} 29. Rg1 {[%clk 0:00:21]}  Qh6 {[%clk 0:00:40]} 30. Rxg7 {[%clk 0:00:21]}  Qxg7 {[%clk 0:00:37]} 31. Qxf4 {[%clk 0:00:21]}  Qh6 {[%clk 0:00:29]} 32. Qxh6+ {[%clk 0:00:19]}  Rxh6 {[%clk 0:00:29]} 33. Kg2 {[%clk 0:00:19]}  Bd7 {[%clk 0:00:25]} 34. Bf4 {[%clk 0:00:19]}  Rg6+ {[%clk 0:00:25]} 35. Kf2 {[%clk 0:00:19]}  Bxa4 {[%clk 0:00:22]} 36. b3 {[%clk 0:00:16]}  Bb5 {[%clk 0:00:22]} 37. Bxb5 {[%clk 0:00:11]}  axb5 {[%clk 0:00:22]} 38. Be3 {[%clk 0:00:10]}  Ra2 {[%clk 0:00:21]} 39. Rd2 {[%clk 0:00:09]}  Ke7 {[%clk 0:00:19]} 40. f4 {[%clk 0:00:09]}  f5 {[%clk 0:00:16]} 41. e5 {[%clk 0:00:08]}  Rh6 {[%clk 0:00:15]} 42. Kg2 {[%clk 0:00:06]}  Ra8 {[%clk 0:00:14]} 43. Bd4 {[%clk 0:00:05]}  Rg8+ {[%clk 0:00:14]} 44. Kf1 {[%clk 0:00:04]}  Rh1+ {[%clk 0:00:14]} 45. Ke2 {[%clk 0:00:04]}  Rg2+ {[%clk 0:00:13]} 46. Bf2 {[%clk 0:00:03]}  Rhh2 {[%clk 0:00:09]} 47. Kf3 {[%clk 0:00:04]}  Kd7 {[%clk 0:00:07]} 48. e6+ {[%clk 0:00:04]}  Ke7 {[%clk 0:00:08]} 49. Re2 {[%clk 0:00:04]}  Kf6 {[%clk 0:00:06]} 50. b4 {[%clk 0:00:05]}  Ke7 {[%clk 0:00:06]} 51. Rd2 {[%clk 0:00:05]}  Ke8 {[%clk 0:00:06]} 52. Re2 {[%clk 0:00:05]}  Rg4 {[%clk 0:00:05]} 53. Re3 {[%clk 0:00:04]}  Rh3+ {[%clk 0:00:05]} 54. Ke2 {[%clk 0:00:01]}  Rxe3+ {[%clk 0:00:06]} 55. Bxe3 {[%clk 0:00:02]}  Rg2+ {[%clk 0:00:06]} 56. Kd3 {[%clk 0:00:03]}  Ke7 {[%clk 0:00:05]} 57. Bd4 {[%clk 0:00:04]}  Rg3+ {[%clk 0:00:05]} 58. Be3 {[%clk 0:00:05]}  Rf3 {[%clk 0:00:06]} 59. Ke2 {[%clk 0:00:05]}  Rh3 {[%clk 0:00:06]} 60. Kd3 {[%clk 0:00:06]}  Rh2 {[%clk 0:00:06]} 61. Kd4 {[%clk 0:00:06]}  Rxc2 {[%clk 0:00:06]} 62. Kd3 {[%clk 0:00:07]}  Rc4 {[%clk 0:00:07]} 63. Bd4 {[%clk 0:00:07]}  Rxb4 {[%clk 0:00:08]} 64. Bf2 {[%clk 0:00:07]}  Rxf4 {[%clk 0:00:07]} 65. Ke3 {[%clk 0:00:07]}  Re4+ {[%clk 0:00:07]} 66. Kf3 {[%clk 0:00:07]}  b4 {[%clk 0:00:08]} 67. Be1 {[%clk 0:00:00]}  b3 {[%clk 0:00:08]} 0-1


[Site "https://www.chess.com"]